Cogmind - Beta 10.2 @@@ ROGUE MODE // 2021.07.10 @ 10:14:55 Player: Plexion Result: Destroyed by EX-DEC with AWS/EX-DEC Performance ------------- Evolutions (0) 0 Regions Visited (3) 600 Robots Destroyed (27) 135 Value Destroyed (289) 289 Prototype IDs (26) 520 Alien Tech Used (0) 0 Bonus (200) 200 TOTAL SCORE: 1744 Bonus ------- Aligned with FarCom 300 Friendly Fire -100 Cogmind --------- Core Integrity 0/250 Matter 27/300 Energy 100/100 System Corruption 1% Temperature Cool (0) Movement Rolling (120) Ox2 Location -10/Exiles Parts ------- > --- POWER (1) -------- (None) > --- PROPULSION (2) --- Compact Wheel > --- UTILITY (2) ------ Large Storage Unit Large Storage Unit > --- WEAPON (2) ------- 8R-AWN's Boregun > --- INVENTORY (16) --- Advanced Myomer Leg Cloak of Protection 8R-AWN's Armor/EX Heavy EM Pulse Gun Light Assault Rifle AWS/Gauss 8R-AWN's Boregun Grenade Launcher Rocket Launcher Field Lobotomy Kit Peak State ------------ > --- POWER ------------ (None) > --- PROPULSION ------- Light Treads Wheel > --- UTILITY ---------- 8R-AWN's Armor/EX > --- WEAPON ----------- 8R-AWN's Boregun > --- INVENTORY -------- AWS/Gauss Grenade Launcher Field Lobotomy Kit [Rating: 34] Favorites ----------- Power Light Ion Engine Engine Light Ion Engine Propulsion Light Treads Treads Light Treads Wheel Wheel Utility Large Storage Unit Device Cloak of Protection Storage Large Storage Unit Protection 8R-AWN's Armor/EX Weapon Heavy EM Pulse Gun Energy Gun Heavy EM Pulse Gun Ballistic Gun Light Assault Rifle Launcher Grenade Launcher Build | -11 -10 -10 -10 ------- Run | Scr Mat Min Exi Slots Evolved . | . . . . Power . | . . . . Propulsion . | . . . . Utility . | . . . . Weapon . | . . . . Parts Attached 39 | 6 6 10 17 Power 2 | 1 . 1 . Engine 2 | 1 . 1 . Core . | . . . . Reactor . | . . . . Propulsion 9 | 2 . 3 4 Treads 5 | 2 . 1 2 Leg . | . . . . Wheel 4 | . . 2 2 Hover . | . . . . Flight . | . . . . Utility 9 | 1 2 . 6 Device 2 | . . . 2 Storage 6 | 1 2 . 3 Processor . | . . . . Hackware . | . . . . Protection 1 | . . . 1 Artifact . | . . . . Weapon 19 | 2 4 6 7 Energy Gun 8 | 1 3 3 1 Energy Cannon . | . . . . Ballistic Gun 7 | 1 . 1 5 Ballistic Cannon . | . . . . Launcher 4 | . 1 2 1 Special Weapon . | . . . . Impact Weapon . | . . . . Slashing Weapon . | . . . . Piercing Weapon . | . . . . Special Melee Weapon . | . . . . Unidentified Prototypes 3 | . . . 3 Parts Lost 10 | . . 6 4 Power 2 | . . 1 1 Propulsion 4 | . . 1 3 Utility . | . . . . Weapon 4 | . . 4 . Highest Loss Streak 3 | . . 3 2 Average Slot Usage (%) 92 | . 93 99 86 Engine 11 | . 14 14 8 Treads 9 | . 28 10 3 Wheel 18 | . . 17 24 Storage 26 | . 21 28 26 Energy Gun 11 | . 27 17 1 Ballistic Gun 7 | . . 3 12 Launcher 6 | . . 7 7 Naked Turns . | . . . . Heaviest Build 43 | 11 43 43 42 Greatest Support 40 | 40 40 40 26 Greatest Overweight (x) 3 | . 1 2 3 Average Overweight (x) 1 | . . 1 1 Largest Inventory Capacity 16 | 6 16 16 16 Average Capacity 14 | 4 11 16 15 Most Carried 13 | 4 8 9 13 Average Carried 7 | 2 6 6 9 Final Capacity 16 | 6 16 16 16 Final Carried 12 | 4 8 5 12 Class Distribution -------------------- 100% | Mutant Dominant Class ---------------- Mutant | -10/Materials Mutant | -10/Mines Mutant | -10/Exiles Resources | -11 -10 -10 -10 ----------- Run | Scr Mat Min Exi Matter Collected 875 | 210 98 158 409 Remotely . | . . . . Salvage Created 590 | . 154 139 297 Parts 74 | . 10 15 49 Haulers Intercepted . | . . . . Recyclers Shooed . | . . . . Parts Field Recycled . | . . . . Retrieved Matter . | . . . . Parts Self-Destructed . | . . . . Prevented . | . . . . Kills | -11 -10 -10 -10 ------- Run | Scr Mat Min Exi Combat Hostiles Destroyed 19 | . 6 9 4 Guns 12 | . 6 5 1 AOE 7 | . . 4 3 Classes Destroyed 8 | . 3 2 3 Worker 1 | . 1 . . Operator 2 | . 2 . . Turret 1 | . . . 1 Swarmer 14 | . 6 8 . Grunt 1 | . . 1 . Demolisher 1 | . . 1 . Zionite 5 | . . . 5 Assembled 3 | . . . 3 Best Kill Streak 5 | . 5 3 4 Combat Bots Only 3 | . 3 3 3 Max Kills in Single Turn 2 | . 1 2 2 Gunslinging . | . . . . Exploded 2 | . . 2 2 Melee . | . . . . Uniques/NPCs Destroyed 3 | . . . 3 8R-AWN (-10/Exiles) EX-BIN (-10/Exiles) EX-HEX (-10/Exiles) Combat | -11 -10 -10 -10 -------- Run | Scr Mat Min Exi Damage Taken 1375 | . 156 595 624 Core 258 | . 24 104 130 Absorbed by Shields . | . . . . Core Remaining (%) 100 | 100 . . . Volleys Fired 132 | . 13 27 92 Largest 2 | . 2 2 1 Hottest 90 | . 90 90 45 Shots Fired 197 | . 24 45 128 Gun 183 | . 22 40 121 Cannon . | . . . . Launcher 14 | . 2 5 7 Special . | . . . . Kinetic 118 | . . 5 113 Thermal . | . . . . Explosive 14 | . 2 5 7 Electromagnetic 65 | . 22 35 8 Robot Hit Streak 15 | . 3 5 15 Robot Miss Streak 5 | . 4 5 5 Penetration Max . | . . . . Secondary Targets 2 | . . 2 . Max Gunslinging Chain 1 | . . 1 . Autonomous 36 | . . . 36 Shots Hit Robots 111 | . 10 22 79 Core Hits 60 | . 9 18 33 Critical Hits 14 | . . . 14 Critical Kills 2 | . . . 2 Critical Parts Destroyed 9 | . . . 9 Melee Attacks . | . . . . Impact . | . . . . Slashing . | . . . . Piercing . | . . . . Sneak Attacks . | . . . . Combat Hostiles . | . . . . Follow-up Attacks . | . . . . Damage Inflicted 2543 | . 181 605 1757 Guns 1924 | . 175 245 1504 Cannons . | . . . . Explosions 602 | . . 349 253 Melee . | . . . . Ramming 17 | . 6 11 . Kinetic 1515 | . . 16 1499 Thermal 103 | . . 97 6 Explosive 499 | . . 252 247 Electromagnetic 409 | . 175 229 5 Impact . | . . . . Slashing . | . . . . Piercing . | . . . . Highest Corruption 1 | . . . 1 Average Corruption 1 | . . . 1 Corruption Purged . | . . . . Overload Shots . | . . . . Overflow Damage 30 | . . 30 . Projectiles . | . . . . Explosions 30 | . . 30 . Melee . | . . . . Knockbacks . | . . . . Impact . | . . . . Kinetic . | . . . . Secondary . | . . . . Self-Inflicted Damage 123 | . . 45 78 Shots 4 | . . 1 3 Rammed 3 | . 2 1 . Targets Rammed 4 | . 3 1 . Kicked . | . . . . Crushed 1 | . 1 . . Highest Temperature 172 | . 120 172 44 Average Temperature 53 | . 37 68 18 Received Heat Transfer . | . . . . Siege Activations . | . . . . Robots Corrupted . | . . . . Combat Hostiles . | . . . . Parts Fried 3 | . 2 1 . Impact Corruptions . | . . . . Robots Melted . | . . . . Combat Hostiles . | . . . . Parts Melted . | . . . . Heat Transferred 162 | . . 150 12 Parts Sabotaged . | . . . . Parts Stolen . | . . . . Parts Stripped . | . . . . Power Chain Reactions 2 | . . 1 1 Missiles Intercepted . | . . . . Alert | -11 -10 -10 -10 ------- Run | Scr Mat Min Exi Peak Influence 170 | . 170 146 . Initial 66 | . . 66 . Average 76 | . 79 82 . Maximum Alert Level . | . . . . Low Security (%) 100 | 100 100 100 . Level 1 . | . . . . Level 2 . | . . . . Level 3 . | . . . . Level 4 . | . . . . Level 5 . | . . . . High Security . | . . . . Max Security . | . . . . Squads Dispatched . | . . . . Investigation . | . . . . Extermination . | . . . . Reinforcement . | . . . . Assault . | . . . . Garrison . | . . . . Intercept . | . . . . Construction Impeded . | . . . . Haulers Reinforced . | . . . . Stealth | -11 -10 -10 -10 --------- Run | Scr Mat Min Exi Distress Signals 1 | . 1 . . Communications Jammed . | . . . . Distress Signals . | . . . . Times Spotted 39 | . 10 11 18 Peak Tracking Total 11 | . 4 3 11 Tactical Retreats 8 | . . . 8 Traps | -11 -10 -10 -10 ------- Run | Scr Mat Min Exi Traps Triggered . | . . . . Indirectly . | . . . . Trap Hack Attempts . | . . . . Triggered . | . . . . Disarmed . | . . . . Reprogrammed . | . . . . Reused . | . . . . Traps Extracted . | . . . . Installed . | . . . . Triggered . | . . . . Exploded 3 | . . . 3 Machines | -11 -10 -10 -10 ---------- Run | Scr Mat Min Exi Machines Disabled 12 | . 1 . 11 Max in Single Turn 1 | . 1 . 1 Machines Sabotaged . | . . . . Garrisons Compromised . | . . . . Overloaded Fab Kills . | . . . . Fab Network Shutdowns . | . . . . Hacking | -11 -10 -10 -10 --------- Run | Scr Mat Min Exi Machines Accessed 5 | . 3 . 2 Terminals 3 | . 3 . . Fabricators . | . . . . Repair Stations . | . . . . Recycling Units . | . . . . Scanalyzers . | . . . . Garrison Access . | . . . . Total Hacks 7 | . 5 . 2 Successful 4 | . 2 . 2 Failed 3 | . 3 . . Catastrophic 2 | . 2 . . Database Lockouts . | . . . . Manual 5 | . 4 . 1 Terminals 5 | . 5 . . Fabricators . | . . . . Repair Stations . | . . . . Recycling Units . | . . . . Scanalyzers . | . . . . Garrison Access . | . . . . Terminal Hacks 3 | . 1 . 2 Record 1 | . . . 1 Zone Layout 1 | . 1 . . EX-Prototype ID Bank 1 | . . . 1 Fabricator Hacks . | . . . . Repair Station Hacks . | . . . . Recycling Unit Hacks . | . . . . Scanalyzer . | . . . . Garrison Access Hacks . | . . . . Unauthorized Hacks 1 | . 1 . . Terminals 1 | . 1 . . Track 1 | . 1 . . Fabricators . | . . . . Repair Stations . | . . . . Recycling Units . | . . . . Scanalyzers . | . . . . Garrison Access . | . . . . Data Cores Recovered 2 | . 2 . . Used . | . . . . Hacking Detections 3 | . 3 . . Full Trace Events . | . . . . Feedback Events . | . . . . Feedback Blocked . | . . . . Robot Schematics Acquired . | . . . . Robots Built . | . . . . Matter . | . . . . Time . | . . . . Total Robot Build Rating . | . . . . Part Schematics Acquired . | . . . . Parts Built . | . . . . Matter . | . . . . Time . | . . . . Total Part Build Rating . | . . . . Parts Repaired . | . . . . Time . | . . . . Parts Recycled . | . . . . Recycled Matter . | . . . . Retrieved Matter . | . . . . Retrieved Components . | . . . . Parts Scanalyzed . | . . . . Part Schematics Acquired . | . . . . Parts Damaged . | . . . . Bothacking | -11 -10 -10 -10 ------------ Run | Scr Mat Min Exi Used RIF Installer . | . . . . Robots Hacked . | . . . . Non-combat . | . . . . Combat . | . . . . Robot Hacks Applied . | . . . . Relay Couplers Released . | . . . . Robots Rewired . | . . . . Allies Hacked . | . . . . Hacks Repelled . | . . . . Allies | -11 -10 -10 -10 -------- Run | Scr Mat Min Exi Total Allies 4 | . . 4 . Largest Group 4 | . . 4 3 Highest-Rated Group 70 | . . 70 63 Highest-Rated Ally 31 | . . 31 31 Total Orders 1 | . . . 1 STAY 1 | . . . 1 Ally Attacks 6 | . . 2 4 Total Damage 65 | . . 35 30 Kills 1 | . . . 1 Allies Corrupted . | . . . . Allies Melted . | . . . . Intel | -11 -10 -10 -10 ------- Run | Scr Mat Min Exi Robot Analysis Total . | . . . . Derelict Logs Recovered 1 | . . 1 . Drone Launches . | . . . . Drone Recoveries . | . . . . Exploration | -11 -10 -10 -10 ------------- Run | Scr Mat Min Exi Turns Passed 2470 | 93 376 901 1100 Spaces Moved 1678 | 52 189 647 790 Core 2 | 2 . . . Treads 411 | 50 189 172 . Legs . | . . . . Wheels 1265 | . . 475 790 Hover . | . . . . Flight . | . . . . Fastest Speed 50 | 50 160 100 80 Average Speed 118 | 155 170 121 100 Slowest Speed 200 | 160 180 200 110 Overloaded Moves . | . . . . Propulsion Burnouts . | . . . . Robots Hopped . | . . . . Cave-ins Triggered . | . . . . Exploration Rate (%) 52 | 4 39 80 86 Regions Visited 3 Branch Regions 2 Pre-discovered Areas 1 | . . . 1 Known Exits Taken . | . . . . Unknown Exits Taken 3 | 1 1 1 . Scrap Searched 1 | . . 1 . Spaces Dug 9 | . . 9 . Terrain Destroyed 153 | . 15 55 83 Melee . | . . . . Projectile 45 | . . . 45 AOE 108 | . 15 55 38 Terrain Rammed . | . . . . Walls Destroyed . | . . . . Machines Disabled . | . . . . Actions | -11 -10 -10 -10 --------- Run | Scr Mat Min Exi Total 2000 | 61 219 717 1003 Wait 103 | . 1 26 76 Move 1675 | 51 188 646 790 Hop . | . . . . Pick Up 26 | 4 4 3 15 Fast Attach 13 | 6 2 . 5 Attach 13 | . . 7 6 Detach 7 | . 1 1 5 Swap 13 | . 4 3 6 Drop 11 | . 3 . 8 Fire 132 | . 13 27 92 Melee . | . . . . Ram 1 | . . 1 . Kick . | . . . . Crush 3 | . 3 . . Escape Stasis . | . . . . Rewire 3 | . . 3 . Trap . | . . . . Miscellaneous . | . . . . Route ------- -11/Scrapyard -10/Materials -10/Mines (discovered 2 exits: [*Mat] / *Exi) -10/Exiles (discovered 2 exits: *Min x2) History --------- Turn | Location | Event 6 | -11/Scrapyard | Discovered new exit (range 16) 94 | -11/Scrapyard | Entered Materials 297 | -10/Materials | Discovered new exit (range 12) 313 | -10/Materials | Build established: Mutant 470 | -10/Materials | Entered Mines 477 | -10/Mines | Received a Rocket Launcher from a helpful Derelict 747 | -10/Mines | Assembled infested the area 830 | -10/Mines | Lost 3 parts (1p1n1w) 877 | -10/Mines | Assisted by bots powering up and referring to "LRC-V3" 908 | -10/Mines | Escorted by a lone wolf Derelict 1072 | -10/Mines | Discovered new exit (range 9) 1139 | -10/Mines | Core integrity fell below 50% 1352 | -10/Mines | Discovered new exit (range 5) 1371 | -10/Mines | Entered Exiles 1371 | -10/Exiles | Accompanied by 3 allies 1372 | -10/Exiles | Identified exit to Mines 1398 | -10/Exiles | Met 8R-AWN 1412 | -10/Exiles | Met EX-HEX 1449 | -10/Exiles | Met EX-DEC 1466 | -10/Exiles | Learned location of Zion (-7) 1542 | -10/Exiles | Met EX-BIN 1578 | -10/Exiles | Aligned with FarCom system 1579 | -10/Exiles | Given EX-Vault access code 1602 | -10/Exiles | Opened EX-Vault 1609 | -10/Exiles | Found Field Lobotomy Kit 1612 | -10/Exiles | Found AWS/Gauss 1614 | -10/Exiles | Found Cloak of Protection 1634 | -10/Exiles | Warned to stay clear of 0b10 Research branches 1928 | -10/Exiles | Attacked by the Exiles 2070 | -10/Exiles | Destroyed 8R-AWN 2075 | -10/Exiles | Found Prototype Ballistic Gun 2075 | -10/Exiles | Identified 8R-AWN's Boregun 2079 | -10/Exiles | Found 8R-AWN's Boregun 2091 | -10/Exiles | Found Prototype Protection 2091 | -10/Exiles | Identified 8R-AWN's Armor/EX 2189 | -10/Exiles | Core integrity fell below 20% 2351 | -10/Exiles | Destroyed EX-BIN 2401 | -10/Exiles | Destroyed EX-HEX 2471 | -10/Exiles | Destroyed by EX-DEC with AWS/EX-DEC Last Messages --------------- 02428_ AM-PHS suffers critical hit. 02428_ Destroyed Mak. Power Source. 02430_ HV Slug penetrates Machine. 02432_ HV Slug penetrates AM-PHS. 02432_ AM-PHS suffers critical hit. 02432_ AM-PHS destroyed. 02438_ Acquired 30 matter. 02439_ HV Slug penetrates Machine. 02443_ HV Slug penetrates EX-DEC. 02445_ HV Slug penetrates Machine. 02447_ HV Slug penetrates EX-DEC. 02449_ EX-DEC suffers critical hit. 02449_ Destroyed Adv. Launcher Guidance Computer. 02451_ HV Slug penetrates EX-DEC. 02451_ EX-DEC suffers critical hit. 02451_ Destroyed Prototype Engine. 02453_ HV Slug penetrates EX-DEC. 02463_ HV Slug penetrates Wall. 02470_ Critical hit. 02470_ Wheel destroyed. Map ----- +----------------------------------------------------+ | ????????????????????????????????#"""" | | ????????????????????????????????#"" | | ????????????????????????????????#" """ | | ????????????????????????????????#""" "" | | ????????????????????????????????## "" | | ?????????????????????????????????#"" """# | | ?????????????????????????????????##""" ## | | ??????????????????????????????????##"""" ##? | | ???????????????????????????????????### #?? | | ?????????????????????????????????????##### ##?? | | ?????????????????????????????????????????## #??? | | ??????????????????????????????????????????# ##?? | | ??????????????????????????????????????????# ##? | | ?????????????????????????????????????????## #? | | ?????????????????????????????????##??????# # #? | | ????????????????????????"?"????#"""""""??# *! # #? | | ??????????????????????"""""????#"""""""??# #? | | ?????????????????????""""" ????#" """"??# = #? | | ?????????????????????""" ""????#"" """??# ##? | | ??????????????????"??"" "?????"" ""### #? | | ??????????????????""###"""########"""##"## * #### | | ???????????"? ??""""""" """"""" !!!"! "%! """ | | ??????????? """""" """""""% !! !!!== * | | ?????????? ! !!!!! ! | | ?????????? *!!!! | | ?????????? = @ | | ?????????? c =% = = "" | | ???????????" * " """"" " " " "" | | ???????????#""";#;;####"""###""###"""######"#"""## | | ???????????????""????"" "?#""#"" ""???#" "" | | ????????????????????#""" "?#""#""" ""#??#" """ | | ????????????????????#" """"?"""#" " "#??#""""""" | | ????????????????????#""""""?#""#"""""""#??#"" """" | | ?????????????????????""""""?????"""""""#??#"""""?? | | ?????????????????????????????????######?????##???? | | ?????????????????????????????????????????????????? | | ?????????????????????????????????????????????????? | | ?????????????????????????????????????????????????? | | ?????????????????????????????????????????????????? | | | | | | | | | | | | | | | | | | | | | | | +----------------------------------------------------+ Best States ------------- Heat Dissipation 25 Energy Generation 10 Energy Capacity 250 Matter Stores 300 Matter Capacity 300 Sight Range 16 Terrain Scan Density 10 Cloak Strength 5 Evasion (%) 44 Recoil Reduction 2 Item Schematics ----------------- None Robot Schematics ------------------ None Fabricated ------------ Nothing Alien Tech Used ----------------- None Achievements -------------- None Challenges ------------ None Game ------ Seed ImpactTargetingShotgun Manual? 0 Play Time 00:18:23 Cumulative 199.0 hours Start 2021.07.10 @ 10:00:36 End 2021.07.10 @ 10:14:55 Sessions 1 Manual Loads 0 Difficulty Rogue Special Mode None Game No. 255 Rogue 168 Adventurer 87 Explorer 0 Win Type - Total 4 Types 3/0/0/1/0/0/0/0/0 Lore% 68 Gallery% 76 Achievement% 62 Wizard Run 0 Options --------- ASCII 0 Keyboard 1 Movement Numpad Keybinds 0 Fullscreen 1 Font 18/Smallcaps Map View 76x50 Tactical HUD 1 Map Filters NONE Filters NONE Steam 1 RUN: 4599c471-5313-4592-abeb-03995011da88